bitfinex/quotes_ETHUSD_20250406
["timestamp","ask_amount","ask_price","bid_price","bid_amount"]
[1743973140718,1.447,1578.3,1577.6,6.33861]
[1743973140917,3.0,1578.3,1577.2,1.5997]
[1743973141123,1.447,1578.2,1577.3,12.67955]
[1743973141443,1.447,1578.2,1577.3,7.767665]
[1743973141663,1.447,1578.1,1577.1,7.1014525]
[1743973141822,1.447,1578.1,1577.0,7.609405]
[1743973141823,7.447,1578.1,1577.0,7.609035]
[1743973142057,1.447,1577.9,1577.1,6.34048]
[1743973142250,10.125,1577.8,1577.1,6.34048]
[1743973142592,10.125,1577.8,1576.9,1.5997]
[1743973142593,1.447,1577.7,1576.9,6.34155]
[1743973142890,1.447,1577.7,1576.9,6.34139]
[1743973143101,1.447,1577.4,1576.1,0.4676649]
[1743973143258,6.0,1577.6,1576.1,0.4676649]
[1743973143259,0.55,1577.1,1576.2,6.34411]
[1743973143586,49.63,1577.0,1576.2,6.34432]
[1743973143784,49.63,1577.0,1576.2,6.978581]
[1743973143946,49.63,1577.0,1576.2,7.0420144]
[1743973144147,49.63,1577.0,1576.0,12.69008]
[1743973144148,1.447,1576.9,1576.0,12.69008]
[1743973144347,1.447,1576.9,1576.0,6.34494]
[1743973144564,1.447,1576.9,1575.9,6.40881066]
[1743973144784,1.447,1576.9,1575.9,6.34537]
[1743973144987,1.447,1576.7,1575.7,6.34633]
[1743973145169,1.447,1576.7,1575.8,0.634633]
[1743973145373,1.92089599,1576.7,1576.1,6.34453]
[1743973145557,1.447,1576.7,1575.8,6.34598]
[1743973145770,10.12,1576.6,1576.3,6.34395]
[1743973145980,10.12,1576.6,1576.1,6.34455]
[1743973146162,10.12,1576.6,1576.0,6.34499]
[1743973146362,10.12,1576.6,1576.2,6.34437]
[1743973146928,10.12,1576.6,1576.2,6.34434]
[1743973147207,10.12,1576.6,1576.1,6.34463]
[1743973147500,10.12,1576.6,1576.2,6.34433]
[1743973147857,10.12,1576.6,1575.9,6.34553]
[1743973148216,10.12,1576.6,1576.1,6.34459]
[1743973148383,10.12,1576.6,1576.1,12.75263863]
[1743973148573,10.12,1576.6,1576.2,6.34429]
[1743973148773,10.12,1576.6,1575.9,7.280113]
[1743973149011,10.12,1576.6,1575.7,6.34632]
[1743973149220,1.447,1576.5,1575.7,6.980952]
[1743973149373,4.447,1576.3,1575.3,6.3478]
[1743973149573,1.447,1576.1,1575.3,6.3478]
[1743973149781,10.12,1576.0,1575.5,6.34702]
[1743973150084,10.12,1576.0,1575.8,6.34568]
[1743973150287,10.12,1576.0,1575.9,6.34558]
[1743973151274,11.565,1576.4,1576.3,6.34397]
[1743973152111,10.118,1576.4,1576.3,6.34397]
[1743973152495,10.118,1576.4,1576.2,6.34422]
[1743973152898,10.118,1576.4,1576.0,6.3451]
[1743973153081,10.118,1576.4,1576.1,6.3446]
[1743973153296,10.118,1576.4,1576.1,6.3447]
[1743973153497,10.118,1576.4,1576.2,6.34424]
[1743973153718,10.118,1576.4,1576.2,12.68841]
[1743973154029,10.118,1576.4,1576.2,12.6884]
[1743973154236,10.118,1576.4,1576.3,6.34397]
[1743973154587,1.447,1576.7,1576.3,1.268814]
[1743973154899,10.117,1576.6,1576.2,6.34436]
[1743973155100,10.117,1576.6,1576.1,6.34472]
[1743973155486,10.117,1576.6,1576.1,12.68935]
[1743973155725,10.117,1576.6,1576.0,12.69014]
[1743973155930,10.117,1576.6,1575.8,3.0]
[1743973156103,10.117,1576.6,1576.2,6.34416]
[1743973156431,10.117,1576.6,1576.0,6.34501]
[1743973156618,10.117,1576.6,1575.9,6.3455]
[1743973156963,1.447,1576.4,1575.5,6.3468]
[1743973157141,1.447,1576.3,1575.4,6.34723]
[1743973157288,1.447,1576.3,1575.3,6.3478]
[1743973157488,4.447,1576.3,1575.6,6.34654]
[1743973157707,1.447,1576.3,1575.6,0.06346305]
[1743973157922,1.447,1576.3,1575.3,7.06609679]
[1743973157923,1.447,1576.3,1575.4,10.94456]
[1743973158122,1.447,1576.3,1575.7,6.34623]
[1743973158304,1.447,1576.3,1575.7,6.3462]
[1743973158635,1.447,1576.3,1575.8,6.34573]
[1743973158807,1.447,1576.3,1575.7,6.34625]
[1743973159336,1.447,1576.3,1575.8,6.34585]
[1743973159533,1.447,1576.3,1575.6,6.34672]
[1743973159688,1.447,1576.3,1575.4,6.34743]
[1743973159888,1.447,1576.3,1575.5,6.34715]
[1743973160130,1.447,1576.3,1575.5,7.616447]
[1743973160429,1.447,1576.3,1575.7,6.34621]
[1743973160626,1.447,1576.3,1575.6,12.69342]
[1743973160866,1.447,1576.3,1575.8,6.34576]
[1743973161366,1.447,1576.3,1575.8,6.34591]
[1743973161956,1.447,1576.3,1575.6,6.34664]
[1743973162131,1.447,1576.3,1575.3,1.19902869]
[1743973162365,39.543,1576.3,1575.7,6.3462]
[1743973162867,39.543,1576.3,1575.5,6.34715]
[1743973163034,39.543,1576.3,1575.6,6.34665]
[1743973163239,1.447,1576.2,1575.5,6.347]
[1743973163432,1.447,1576.2,1575.4,6.34752]
[1743973163658,1.447,1576.2,1575.3,6.34779]
[1743973163842,1.447,1576.1,1575.1,0.47045613]
[1743973164026,10.107,1576.0,1575.4,6.34744]
[1743973164346,10.107,1576.0,1575.4,6.34753]
[1743973164752,10.107,1576.0,1575.4,6.34755]
[1743973165076,10.107,1576.0,1575.5,6.34695]
[1743973165767,10.107,1576.0,1575.6,6.3467]
[1743973165969,1.447,1576.1,1575.6,0.06346771]
[1743973166127,1.447,1576.1,1575.8,6.3459]
[1743973166326,1.447,1576.1,1575.6,6.41004771]
[1743973166327,1.447,1576.1,1575.7,6.34623]
[1743973166862,1.447,1576.1,1575.7,12.69243]
[1743973167058,1.447,1576.1,1575.7,6.3462]
[1743973167265,1.447,1576.1,1575.4,6.34754]
[1743973167439,1.447,1576.1,1575.4,6.34742]
[1743973167640,1.447,1576.1,1575.3,6.34795]
[1743973168166,1.447,1576.1,1575.4,6.34759]
[1743973168365,1.447,1576.1,1575.4,6.34742]
[1743973168942,1.447,1576.1,1575.4,6.34741]
[1743973169145,1.447,1576.1,1575.3,6.34792]
[1743973169571,1.447,1576.1,1575.2,6.34836]
[1743973169724,1.447,1576.1,1575.1,0.48126278]
[1743973169930,1.91954373,1576.1,1575.3,6.3478]
[1743973170131,10.101,1576.0,1575.3,13.33044]
[1743973170639,10.101,1576.0,1575.3,6.98258]
[1743973170853,1.447,1575.9,1575.1,6.34867]
[1743973171054,1.447,1575.8,1574.9,0.06348035]
[1743973171229,1.447,1575.7,1574.9,12.69882]
[1743973171990,1.447,1575.7,1574.9,7.66662679]
[1743973172168,1.447,1575.7,1575.0,6.34897]
[1743973172463,1.447,1575.7,1574.9,6.34954]
[1743973172849,1.447,1575.7,1574.9,6.34941]
[1743973173053,1.447,1575.7,1574.9,0.55]
[1743973173283,11.545,1575.7,1575.3,6.34791]
[1743973173587,11.545,1575.7,1575.3,6.34785]
[1743973174174,11.545,1575.7,1575.2,6.34826]
[1743973174974,11.545,1575.7,1575.0,6.34912]
[1743973175787,11.545,1575.7,1575.1,6.3488]
[1743973175987,1.447,1575.6,1574.8,6.34993]
[1743973176304,1.447,1575.6,1574.7,1.5877]
[1743973176305,1.447,1575.5,1574.7,6.35018]
[1743973176793,1.447,1575.5,1574.8,6.34982]
[1743973177094,1.447,1575.5,1574.7,6.35032]
[1743973177291,1.447,1575.5,1574.8,6.34993]
[1743973177591,1.447,1575.5,1575.0,6.34905]
[1743973177803,1.447,1575.5,1575.1,6.3488]
[1743973177968,1.447,1575.5,1575.2,6.41158147]
[1743973178165,1.447,1575.5,1575.2,6.34835]
[1743973178800,1.447,1575.5,1575.2,1.26971]
[1743973178957,10.091,1575.7,1575.1,6.34844]
[1743973179301,10.091,1575.7,1575.3,12.69549]
[1743973179538,10.091,1575.7,1575.4,6.34755]
[1743973179806,10.091,1575.7,1575.3,12.69558]
[1743973179962,10.091,1575.7,1575.4,6.34755]
[1743973180164,10.091,1575.7,1575.3,6.34792]
[1743973180503,10.091,1575.7,1575.3,6.34783]
[1743973180671,10.091,1575.7,1575.1,6.82849305]
[1743973181002,1.447,1575.6,1575.0,6.34903]
[1743973181294,1.447,1575.6,1575.0,12.76155471]
[1743973181596,1.447,1575.6,1575.0,12.69807]
[1743973181894,1.447,1575.6,1575.1,6.34878]
[1743973182096,1.447,1575.6,1575.0,12.69819]
[1743973182297,1.447,1575.6,1575.0,13.968009]
[1743973182599,1.447,1575.6,1575.0,7.618849]
[1743973182896,1.447,1575.6,1574.7,6.35028]
[1743973183319,1.447,1575.5,1574.6,6.35074]
[1743973183456,38.116,1575.4,1574.8,6.34976]
[1743973183662,38.116,1575.4,1574.8,12.69965]
[1743973183875,38.116,1575.4,1574.8,6.34976]
[1743973184396,38.116,1575.4,1574.8,12.69964]
[1743973184614,38.116,1575.4,1574.8,6.34976]
[1743973184979,1.447,1575.3,1574.6,6.35063]
[1743973185486,1.447,1575.3,1574.6,12.70128]
[1743973185685,1.447,1575.3,1574.6,6.35063]
[1743973185885,1.447,1575.3,1574.6,6.35081]
[1743973186074,1.447,1575.3,1575.0,6.34919]
[1743973186276,1.447,1575.3,1574.8,6.34992]
[1743973186501,1.447,1575.3,1574.8,6.34995]
[1743973186715,1.447,1575.3,1574.8,12.6998]
[1743973187018,1.447,1575.3,1574.9,6.34957]
[1743973187224,1.447,1575.3,1574.7,12.70055]
[1743973187419,1.447,1575.3,1574.8,6.34988]
[1743973187626,1.447,1575.3,1575.0,6.34919]
[1743973188130,1.447,1575.3,1575.0,6.34903]
[1743973188345,1.447,1575.3,1574.9,12.69901]
[1743973188626,1.447,1575.3,1574.6,9.35068]
[1743973188789,1.447,1575.3,1574.6,6.35068]
[1743973188988,1.447,1575.3,1574.6,12.70137]
[1743973189389,1.447,1575.3,1574.8,6.34994]
[1743973189632,1.447,1575.3,1574.7,12.76413487]
[1743973189789,1.447,1575.3,1574.7,6.35026]
[1743973189991,1.447,1575.3,1574.7,6.35039]
[1743973190290,1.447,1575.3,1574.6,6.35072]
[1743973190946,1.447,1575.3,1574.6,3.0]
[1743973191151,11.524,1575.3,1574.7,0.55]
[1743973191318,11.524,1575.3,1574.9,6.34948]
[1743973191500,11.524,1575.3,1574.8,6.35001]
[1743973191705,11.524,1575.3,1574.7,0.06349248]
[1743973192049,11.524,1575.3,1574.9,6.34947]
[1743973192244,11.524,1575.3,1574.9,12.69891]
[1743973192408,11.524,1575.3,1574.6,9.35048]
[1743973192602,11.524,1575.3,1574.8,6.35001]
[1743973192822,11.524,1575.3,1574.8,6.34989]
[1743973193051,11.524,1575.3,1574.7,6.41380912]
[1743973193052,11.524,1575.3,1574.9,6.41296297]
[1743973193345,11.524,1575.3,1574.9,6.34954]
[1743973193544,3.67807609,1575.2,1574.9,6.34954]
[1743973193846,3.67807609,1575.2,1574.9,12.76249007]
[1743973194053,3.67807609,1575.2,1575.1,6.3488]
[1743973195448,3.67807609,1575.2,1575.0,6.34901]
[1743973195651,3.67807609,1575.2,1575.1,6.3488]
[1743973196941,3.67807609,1575.5,1575.4,6.34759]
[1743973197111,3.67807609,1575.5,1575.2,6.34824]
[1743973197451,4.1905837,1575.5,1575.0,6.34899]
[1743973197612,4.1905837,1575.5,1575.0,12.69807]
[1743973198318,4.1905837,1575.5,1574.5,6.83207521]
[1743973198531,1.447,1575.4,1574.8,6.34982]
[1743973198842,1.86605837,1575.4,1574.7,6.35017]
[1743973199070,1.86605837,1575.4,1574.9,6.34958]
[1743973199359,3.67807609,1575.3,1575.0,6.34894]
[1743973199558,10.065,1575.2,1575.1,6.41202074]
[1743973199914,3.67807609,1575.3,1575.2,6.3484]
[1743973200117,3.67807609,1575.3,1575.2,6.3219]
[1743973200441,3.67807609,1575.3,1575.2,11.20241988]
[1743973200641,3.67807609,1575.3,1575.2,10.588944]
[1743973200846,3.67807609,1575.3,1575.1,6.34854]
[1743973201046,3.67807609,1575.3,1575.2,6.3484]
[1743973202414,3.67807609,1575.4,1575.3,6.34799]
[1743973202614,1.447,1575.3,1574.5,1.5025]
[1743973202818,10.061,1575.2,1574.6,6.35063]
[1743973203053,10.061,1575.2,1574.7,0.06349592]
[1743973203238,10.061,1575.2,1575.0,6.3492]
[1743973203422,10.061,1575.2,1574.7,6.35026]
[1743973203814,1.447,1575.1,1574.4,6.35137]
[1743973204019,1.447,1575.0,1574.1,6.35266]
[1743973204220,1.447,1574.8,1574.0,6.35324]
[1743973204417,47.193,1574.8,1574.4,12.70309]
[1743973204643,1.53804061,1574.7,1574.1,6.35264]
[1743973204959,47.193,1574.8,1573.7,6.35443]
[1743973204960,1.447,1574.5,1573.7,6.35443]
[1743973205249,1.447,1574.5,1573.8,6.35402]
[1743973205461,1.447,1574.5,1573.7,6.35439]
[1743973205661,1.447,1574.4,1573.3,7.85855]
[1743973205860,1.447,1574.4,1573.6,6.35468]
[1743973206063,1.447,1574.4,1573.3,2.923994]
[1743973206222,1.447,1574.4,1573.0,6.39732991]
[1743973206223,1.447,1574.4,1574.2,6.35213]
[1743973206557,1.447,1574.4,1574.1,6.35278]
[1743973206757,13.73507609,1574.6,1574.2,6.4158027]
[1743973206964,13.73507609,1574.6,1574.4,6.3513]
[1743973207118,13.73507609,1574.6,1574.2,12.70458]
[1743973207324,13.73507609,1574.6,1574.3,6.3518]
[1743973207650,13.73507609,1574.6,1574.1,3.0]
[1743973207651,13.73507609,1574.6,1574.5,6.35122]
[1743973207853,3.67807609,1574.6,1574.5,6.35122]
[1743973208419,3.67807609,1574.6,1574.2,0.55]
[1743973208420,1.447,1574.5,1573.7,1.6098]
[1743973208619,1.447,1574.4,1573.4,6.35533]
[1743973208819,10.79945,1574.2,1573.1,6.35665]
[1743973209026,1.447,1574.0,1573.2,6.35645]
[1743973209326,1.447,1573.8,1573.3,6.35568]
[1743973209567,10.054,1573.7,1573.2,6.35641]
[1743973209870,1.447,1573.6,1572.5,1.6098]
[1743973210052,1.447,1573.6,1573.0,6.35711]
[1743973210249,1.447,1573.6,1572.5,1.6098]
[1743973210567,1.447,1573.6,1573.3,6.35588]
[1743973211066,1.447,1573.6,1572.9,6.35728]
[1743973211263,1.447,1573.6,1572.8,6.35792]
[1743973211620,1.447,1573.6,1572.7,12.7168]
[1743973211621,1.56304635,1573.6,1572.7,12.7168]
[1743973211865,1.56304635,1573.5,1572.6,6.35886]
[1743973212185,1.447,1573.2,1572.4,6.3595]
[1743973212321,10.053,1573.1,1573.0,6.35722]
[1743973212528,10.053,1573.1,1572.9,6.35745]
[1743973212879,0.11604635,1573.4,1573.3,6.35606]
[1743973213054,10.052,1573.6,1573.2,6.35631]
[1743973213250,10.052,1573.6,1573.1,6.35687]
[1743973213475,10.052,1573.6,1572.8,6.35805]
[1743973213626,1.447,1573.5,1572.7,6.35849]
[1743973213825,1.447,1573.5,1572.4,1.5707]
[1743973214073,1.56304635,1573.4,1572.5,6.35913]
[1743973214228,1.447,1573.2,1572.5,6.35913]
[1743973214571,1.56304635,1573.2,1572.7,6.35841]
[1743973214750,1.56304635,1573.2,1572.6,6.35874]
[1743973214935,1.56304635,1573.2,1572.3,6.36002]
[1743973215140,1.56304635,1573.2,1572.6,6.35889]
[1743973215435,1.56304635,1573.2,1573.1,6.35687]
[1743973215436,1.447,1573.2,1573.1,6.35687]
[1743973215652,1.447,1573.2,1572.8,6.35803]
[1743973215859,1.447,1573.2,1572.7,6.35813]
[1743973216164,1.447,1573.2,1572.8,6.35788]
[1743973216368,1.447,1573.2,1572.5,9.35923]
[1743973216569,1.447,1573.2,1572.7,6.35829]
[1743973216868,1.91879898,1573.2,1572.6,6.35875]
[1743973217183,1.447,1573.2,1572.6,6.35854]
[1743973217403,1.447,1573.1,1572.2,6.36048]
[1743973217607,1.447,1572.9,1572.3,6.35984]
[1743973217966,1.93078011,1572.9,1572.2,6.36049]
[1743973218170,1.93078011,1572.9,1571.8,6.3618]
[1743973218171,1.447,1572.8,1571.7,1.516]
[1743973218365,12.43315235,1572.7,1571.5,6.36334]
[1743973218568,12.43315235,1572.7,1571.4,1.6314]
[1743973218569,1.447,1572.5,1571.7,6.36237]
[1743973218790,1.447,1572.3,1571.7,6.36237]
[1743973219502,1.447,1572.3,1571.6,6.36254]
[1743973219675,1.447,1572.3,1571.5,6.36334]
[1743973219878,1.447,1572.3,1571.5,6.36309]
[1743973220075,1.447,1572.3,1571.4,6.36353]
[1743973220295,1.447,1572.3,1571.5,6.36302]
[1743973220500,1.447,1572.3,1571.1,7.164609]
[1743973220703,1.447,1572.3,1571.6,6.36274]
[1743973220904,1.447,1572.3,1571.6,0.06362929]
[1743973221116,1.447,1572.3,1572.1,6.36076]
[1743973221427,1.447,1572.3,1571.7,6.36253]
[1743973221581,1.447,1572.6,1571.9,3.0]
[1743973221781,10.048,1572.5,1572.4,6.3597]
[1743973222122,10.048,1572.9,1572.8,6.35808]
[1743973222446,1.447,1573.2,1572.9,6.35768]
[1743973222580,3.67807609,1573.6,1572.6,1.535]
[1743973222581,10.047,1573.4,1572.6,1.535]
[1743973222775,10.047,1573.4,1572.9,6.35738]
[1743973222776,1.447,1573.3,1572.9,6.35738]
[1743973222980,2.5964,1573.3,1573.0,6.35699]
[1743973223179,2.5964,1573.3,1573.1,6.35666]
[1743973223180,1.447,1573.3,1573.1,6.35666]
[1743973223423,10.047,1573.4,1573.0,6.35699]
[1743973223628,1.447,1573.5,1573.3,6.35606]
[1743973223922,10.045,1573.6,1573.5,6.35525]
[1743973224134,1.447,1574.2,1573.9,6.35364]
[1743973224283,10.045,1574.5,1574.4,6.35162]
[1743973224481,11.1942,1574.5,1573.9,6.35364]
[1743973224745,10.045,1574.5,1573.3,6.3557]
[1743973225028,1.447,1574.1,1573.3,6.35606]
[1743973225177,1.56304635,1574.1,1573.3,12.71196]
[1743973225377,1.56304635,1574.1,1573.3,6.356]
[1743973225609,1.56304635,1574.1,1573.5,6.35507]
[1743973225822,1.56304635,1574.1,1573.3,6.3557]
[1743973226209,1.56304635,1574.1,1573.4,6.35543]
[1743973226380,1.56304635,1574.1,1573.5,6.35516]
[1743973226585,1.56304635,1574.1,1573.1,6.35686]
[1743973226586,1.56304635,1574.1,1573.1,6.35656]
[1743973226784,7.80048,1574.0,1572.5,14.04093235]
[1743973227008,1.447,1573.8,1572.9,6.3574]
[1743973227212,1.447,1573.8,1572.6,7.31352732]
[1743973227213,1.447,1573.6,1573.0,0.06356997]
[1743973227408,1.447,1573.6,1573.2,6.35611]
[1743973227802,1.447,1573.6,1573.0,0.06356014]
[1743973227997,1.447,1573.6,1572.5,14.59108235]
[1743973227998,2.20499261,1573.6,1573.1,6.35656]
[1743973228208,2.20499261,1573.6,1573.1,12.71323]
[1743973228492,45.92104635,1573.7,1573.6,6.35485]
[1743973228698,45.92104635,1573.7,1573.6,9.35485]
[1743973228699,0.11604635,1573.7,1573.6,9.35485]
[1743973228898,10.038,1574.2,1574.0,6.35323]
[1743973229095,10.038,1574.2,1574.1,6.35283]
[1743973229647,1.447,1574.6,1574.4,6.35128]
[1743973229840,10.037,1574.9,1574.5,6.41472292]
[1743973230056,1.447,1575.0,1574.5,6.90122]
[1743973230197,11.483,1575.4,1575.2,6.34804]
[1743973230392,11.483,1575.4,1575.3,6.34799]
[1743973230595,47.249,1575.8,1575.0,3.0]
[1743973230845,1.447,1575.8,1575.7,6.34638]
[1743973230998,13.51813836,1576.9,1575.3,3.0]
[1743973230999,1.447,1576.2,1575.8,6.34569]
[1743973231201,10.035,1576.1,1575.3,1.54230524]
[1743973231536,1.447,1576.2,1575.5,6.07465235]
[1743973231702,1.447,1576.2,1575.6,6.34675]
[1743973231897,1.447,1576.2,1575.6,6.34653]
[1743973232100,1.447,1576.2,1575.3,9.34796]
[1743973232337,10.033,1576.3,1576.1,12.68954]
[1743973232496,47.249,1576.5,1576.1,6.34448]
[1743973232702,47.249,1576.5,1575.6,7.95365]
[1743973232896,47.249,1576.5,1575.5,6.34703]
[1743973233198,46.24789049,1576.5,1575.5,6.34715]
[1743973233399,1.56304635,1576.4,1575.1,3.55]
[1743973233636,0.11604635,1576.3,1575.5,6.34679]
[1743973233916,1.447,1576.4,1575.8,6.34572]
[1743973234128,1.447,1576.4,1575.7,6.34638]
[1743973234300,10.026,1576.3,1575.7,6.34638]
[1743973234495,10.026,1576.3,1575.9,6.34554]
[1743973234729,10.026,1576.3,1575.8,6.34579]
[1743973234910,10.026,1576.3,1575.3,1.5416]
[1743973235113,1.56304635,1576.2,1575.0,6.349]
[1743973235335,0.11604635,1576.1,1575.2,6.34812]
[1743973235535,1.447,1576.0,1575.0,6.3492]
[1743973235838,1.447,1576.0,1575.1,3.0]
[1743973236063,1.447,1576.0,1575.3,6.34795]
[1743973236242,1.447,1576.0,1575.4,6.3475]
[1743973236413,1.447,1576.0,1575.5,6.34718]
[1743973236619,1.447,1576.0,1575.6,6.3466]
[1743973236926,1.447,1576.0,1575.5,6.347]
[1743973237132,1.447,1576.0,1574.9,1.5416]
[1743973237338,1.447,1576.0,1575.0,6.34901]
[1743973237521,1.56304635,1576.0,1574.9,6.34957]
[1743973237735,1.447,1575.8,1574.5,1.5416]
[1743973237919,1.447,1575.6,1574.8,6.34984]
[1743973238120,45.763,1575.5,1575.1,6.34861]
[1743973238354,10.13404635,1575.7,1575.5,6.34699]
[1743973238355,10.018,1575.7,1575.5,6.34699]
[1743973238662,10.016,1576.1,1575.5,6.34693]
[1743973238842,10.016,1576.1,1575.4,6.07465235]
[1743973239020,10.016,1576.1,1575.7,6.34613]
[1743973239215,10.016,1576.1,1575.5,6.34719]
[1743973239542,10.016,1576.1,1575.7,6.34616]
[1743973239732,10.016,1576.1,1575.6,6.34674]
[1743973239933,10.016,1576.1,1575.7,6.34617]
[1743973240130,10.016,1576.1,1575.6,6.34654]
[1743973240343,10.016,1576.1,1575.8,6.3458]
[1743973240546,10.016,1576.1,1575.9,6.34548]
[1743973241160,10.016,1576.1,1575.5,6.34708]
[1743973241464,10.013,1576.0,1575.5,6.34718]
[1743973241661,10.013,1576.0,1575.6,0.06346464]
[1743973241820,10.013,1576.0,1575.9,6.34558]
[1743973242021,10.013,1576.0,1575.8,6.3457]
[1743973242216,10.013,1576.0,1575.4,6.34737]
[1743973242460,10.013,1576.0,1575.4,6.34733]
[1743973242660,10.013,1576.0,1575.5,6.34718]
[1743973242859,10.013,1576.0,1575.0,1.98848274]
[1743973243033,10.013,1576.0,1575.4,6.34733]
[1743973243226,10.013,1576.0,1575.3,6.34799]
[1743973243537,10.013,1576.0,1575.9,6.34558]
[1743973243726,6.0,1576.5,1575.9,6.34558]
[1743973243727,10.008,1576.4,1576.1,6.34477]
[1743973243923,1.447,1576.5,1576.4,6.34356]
[1743973244122,10.008,1576.6,1576.2,6.34432]
[1743973244351,10.008,1576.6,1576.0,6.34517]
[1743973244551,1.447,1576.5,1575.8,6.34574]
[1743973244769,1.447,1576.5,1575.8,3.0]
[1743973244951,1.447,1576.5,1576.2,6.34419]
[1743973245226,1.447,1576.5,1576.0,6.34509]
[1743973245626,1.447,1576.5,1576.2,6.34436]
[1743973245850,10.005,1576.4,1576.0,6.34514]
[1743973246064,10.005,1576.5,1576.3,6.34371]
[1743973246219,1.447,1576.8,1576.1,6.34477]
[1743973246420,1.447,1576.6,1575.7,1.5022]
[1743973246765,1.447,1576.6,1576.0,6.34497]
[1743973246964,1.447,1576.6,1576.1,12.6892]
[1743973247167,1.447,1576.6,1576.3,6.34381]
[1743973247464,1.447,1576.6,1576.2,6.34417]
[1743973247668,1.447,1576.6,1576.3,12.75100301]
[1743973247825,45.75,1576.9,1576.8,6.34195]
[1743973247826,57.198,1576.9,1576.8,6.34195]
[1743973248021,10.001,1576.9,1576.5,6.34299]
[1743973248261,10.001,1576.8,1576.6,6.34274]
[1743973248466,10.0,1576.9,1576.7,6.34233]
[1743973248670,10.0,1576.9,1576.5,6.34284]
[1743973248971,1.447,1576.8,1576.1,6.3446]
[1743973249169,1.447,1576.8,1576.2,6.34418]
[1743973249470,1.447,1576.8,1575.5,6.34712]
[1743973249471,1.447,1576.6,1575.5,6.34712]
[1743973249636,1.447,1576.4,1575.5,6.34701]
[1743973249841,11.56193686,1576.3,1575.8,6.34593]
[1743973250040,11.56193686,1576.3,1575.5,6.34719]
[1743973250239,11.446,1576.3,1576.2,6.34437]
[1743973250576,45.738,1576.5,1576.0,6.34517]
[1743973250778,9.998,1576.4,1576.3,9.34376]
[1743973251067,9.998,1576.4,1576.3,10.912556]
[1743973251828,7.447,1576.9,1576.8,6.34195]
[1743973252078,11.443,1576.9,1576.8,6.34195]
[1743973252252,11.443,1576.9,1576.4,3.0]
[1743973252573,11.443,1576.9,1576.6,12.6851]
[1743973252759,11.443,1576.9,1576.7,6.34233]
[1743973253270,55.729,1577.2,1577.1,6.34075]
[1743973253433,0.81038839,1578.1,1577.2,1.5869]
[1743973253632,9.994,1578.0,1577.4,6.33952]
[1743973253836,1.447,1577.9,1577.3,6.33987]
[1743973254061,1.447,1577.9,1577.4,6.33948]
[1743973254262,1.447,1577.9,1577.5,0.06338715]
[1743973254450,1.447,1577.9,1577.3,0.55]
[1743973254649,1.447,1577.9,1577.6,6.33854]
[1743973254850,1.447,1578.5,1577.7,6.33805]
[1743973255031,1.56304635,1578.5,1577.7,0.55]
[1743973255237,9.99,1578.4,1578.1,6.33653]
[1743973255438,11.436,1578.5,1578.1,1.267361]
[1743973255765,3.8884653,1578.6,1578.4,6.33552]
[1743973255968,3.8884653,1578.6,1578.5,6.33512]
[1743973256462,1.447,1579.4,1578.7,6.33432]
[1743973256675,1.447,1579.4,1578.8,3.633432]
[1743973256676,9.984,1579.3,1578.8,3.633432]
[1743973256880,9.984,1579.3,1579.2,6.33232]
[1743973257035,38.97293542,1580.0,1579.6,6.33071]
[1743973257036,9.984,1579.9,1579.6,6.33071]
[1743973257362,9.984,1579.9,1579.2,3.0]
[1743973257563,9.984,1579.9,1579.4,6.33151]
[1743973257857,9.984,1579.9,1579.7,6.33]
[1743973258030,9.984,1579.9,1579.6,6.33054]
[1743973258642,9.984,1579.9,1579.5,12.66195]
[1743973258842,1.447,1580.0,1579.6,6.33034]
[1743973259050,9.982,1579.9,1579.7,6.33031]
[1743973259247,9.982,1579.9,1579.6,12.66088]
[1743973259477,9.982,1579.9,1579.7,6.33014]
[1743973259660,9.981,1579.8,1579.2,12.66415]
[1743973259836,9.981,1579.8,1579.2,7.757495]
[1743973260036,9.981,1579.8,1579.3,6.33169]
[1743973260231,1.447,1579.7,1578.8,2.256232]
[1743973260475,1.54114729,1579.7,1578.8,6.33375]
[1743973260655,1.54114729,1579.7,1578.5,6.33482]
[1743973260656,1.447,1579.5,1578.5,6.33482]
[1743973260855,53.55182729,1579.4,1578.3,6.33555]
[1743973261036,1.447,1579.2,1578.4,6.33524]
[1743973261239,9.973,1579.1,1578.5,6.33509]
[1743973261474,9.973,1579.1,1578.1,6.07465235]
[1743973261777,9.973,1579.1,1579.0,6.33312]
[1743973261931,0.09414729,1579.3,1579.0,6.33312]
[1743973262133,9.972,1579.2,1578.7,1.6228]
[1743973262365,9.972,1579.2,1578.7,4.6228]
[1743973262550,0.09414729,1579.3,1579.1,6.33272]
[1743973262751,0.09414729,1579.3,1579.2,9.39564409]